bitfinex-derivatives/quotes_SOLF0:USTF0_20250709
["timestamp","ask_amount","ask_price","bid_price","bid_amount"]
[1752063868201,2.94770783,154.48,154.4,2.94770783]
[1752063868610,2.94770783,154.48,154.41,6.4753]
[1752063869208,6.4744,154.44,154.4,6.4757]
[1752063869410,2.94770783,154.46,154.4,6.4757]
[1752063869809,2.94770783,154.46,154.41,6.4752]
[1752063870009,2.94770783,154.46,154.38,2.94770783]
[1752063870311,6.4744,154.44,154.4,6.4755]
[1752063870508,2.94770783,154.46,154.4,6.4755]
[1752063870912,6.4745,154.43,154.4,6.4755]
[1752063871213,2.94770783,154.46,154.4,6.4755]
[1752063872111,6.4743,154.44,154.4,6.4755]
[1752063876213,2.94770783,154.46,154.39,6.4759]
[1752063877316,6.4746,154.43,154.39,6.4759]
[1752063877710,6.4742,154.44,154.4,9.42320783]
[1752063879613,6.51922386,154.44,154.41,6.4753]
[1752063881110,0.04502386,154.44,154.4,2.94770783]
[1752063881410,0.04502386,154.44,154.42,2.94770783]
[1752063881714,6.4725,154.48,154.44,6.474]
[1752063881904,2.2207,154.49,154.44,2.94770783]
[1752063882313,6.4725,154.48,154.44,9.42160783]
[1752063882514,6.4725,154.48,154.44,6.4739]
[1752063883014,6.4728,154.47,154.44,0.04336592]
[1752063883215,2.2207,154.49,154.44,0.04336592]
[1752063883416,2.94770783,154.5,154.44,2.99107375]
[1752063883715,5.19120783,154.52,154.44,2.99107375]
[1752063884114,6.4713,154.51,154.47,6.4727]
[1752063884613,6.4713,154.51,154.47,6.4726]
[1752063884815,6.4713,154.51,154.47,6.5213424]
[1752063885612,8.7145,154.52,154.48,6.4724]
[1752063885918,5.18480588,154.53,154.48,2.94770783]
[1752063886520,5.18480588,154.53,154.47,0.0487424]
[1752063886521,5.18480588,154.53,154.5,2.94770783]
[1752063887414,5.18480588,154.53,154.47,0.0487424]
[1752063887615,5.18480588,154.53,154.49,2.94770783]
[1752063888018,5.18480588,154.53,154.5,6.4715]
[1752063889030,11.65520588,154.53,154.5,6.4715]
[1752063889321,5.18480588,154.53,154.51,6.4711]
[1752063889718,5.18480588,154.53,154.5,6.4714]
[1752063890620,5.18480588,154.53,154.5,2.94770783]
[1752063890924,5.18480588,154.53,154.49,2.94770783]
[1752063891219,5.18480588,154.53,154.5,6.4713]
[1752063891717,5.18480588,154.53,154.49,2.94770783]
[1752063891920,5.18480588,154.53,154.47,198.6887424]
[1752063892116,5.18480588,154.53,154.5,6.4713]
[1752063892323,5.18480588,154.53,154.5,2.94770783]
[1752063892817,5.18480588,154.53,154.47,0.0487424]
[1752063893020,5.18480588,154.53,154.49,2.94770783]
[1752063893220,5.18480588,154.53,154.51,6.4708]
[1752063893520,5.18480588,154.53,154.48,198.6]
[1752063893720,5.18480588,154.53,154.5,2.94770783]
[1752063894411,5.18480588,154.53,154.48,203.67170783]
[1752063894615,5.18480588,154.53,154.48,201.50770783]
[1752063895017,11.65530588,154.53,154.48,201.50770783]
[1752063895321,11.65530588,154.53,154.48,201.48770783]
[1752063895521,11.65530588,154.53,154.5,6.4715]
[1752063895721,5.18480588,154.53,154.5,2.94770783]
[1752063897013,5.18480588,154.53,154.52,6.4707]
[1752063897520,5.18480588,154.53,154.52,9.41840783]
[1752063898020,1.65560588,154.53,154.52,9.41840783]
[1752063898724,1.65560588,154.53,154.52,6.4707]
[1752063899021,1.65560588,154.53,154.52,9.41840783]
[1752063899922,1.65560588,154.53,154.52,207.81840783]
[1752063900824,1.65560588,154.53,154.52,207.79840783]
[1752063901422,1.65560588,154.53,154.52,9.41840783]
[1752063901620,1.65560588,154.53,154.52,207.77840783]
[1752063901924,1.65560588,154.53,154.52,9.41840783]
[1752063902124,1.65560588,154.53,154.52,207.75840783]
[1752063902522,1.65560588,154.53,154.52,204.8107]
[1752063902830,1.65560588,154.53,154.51,0.04558668]
[1752063903223,8.12610588,154.53,154.51,0.04558668]
[1752063903427,1.65560588,154.53,154.51,0.04558668]
[1752063903721,6.4707,154.52,154.51,0.04558668]
[1752063904223,6.4707,154.52,154.43,11.94384442]
[1752063904224,2.94770783,154.52,154.43,11.94384442]
[1752063904427,2.94770783,154.5,154.43,11.94384442]
[1752063904728,2.94770783,154.48,154.42,6.4746]
[1752063904924,6.4735,154.46,154.4,570.70384442]
[1752063905128,6.4735,154.46,154.42,6.4746]
[1752063905325,6.4735,154.46,154.41,198.28]
[1752063905521,6.4729,154.47,154.41,198.28]
[1752063905726,6.4729,154.47,154.43,6.4742]
[1752063906122,6.4732,154.46,154.41,2.94770783]
[1752063906326,6.4732,154.46,154.42,204.7346]
[1752063906526,2.94770783,154.48,154.42,204.7346]
[1752063906721,2.94770783,154.48,154.42,204.7348]
[1752063906926,2.94770783,154.46,154.4,558.76]
[1752063907226,9.42160783,154.45,154.41,198.24]
[1752063907629,2.94770783,154.47,154.41,198.24]
[1752063908131,6.4735,154.46,154.42,6.4748]
[1752063908430,2.2994,154.52,154.41,201.18770783]
[1752063908630,2.94770783,154.48,154.43,6.4742]
[1752063909931,6.4732,154.46,154.43,6.4742]
[1752063911739,6.4732,154.46,154.42,6.4748]
[1752063912445,2.94770783,154.46,154.4,558.76]
[1752063912635,2.94770783,154.46,154.41,198.24]
[1752063913227,6.4744,154.44,154.41,198.24]
[1752063913436,6.4744,154.44,154.4,565.2355]
[1752063913739,2.94770783,154.46,154.4,565.2355]
[1752063913940,6.4743,154.44,154.4,763.4155]
[1752063915135,6.4743,154.44,154.4,565.2355]
[1752063915433,6.4745,154.43,154.41,198.2]
[1752063918740,2.94770783,154.46,154.41,198.2]
[1752063918741,6.4749,154.42,154.41,198.2]
[1752063919037,6.4749,154.42,154.4,558.76]
[1752063919237,6.4749,154.42,154.4,756.88]
[1752063919739,6.4746,154.43,154.4,763.3557]
[1752063919942,6.4746,154.43,154.4,565.2357]
[1752063920140,6.4746,154.43,154.4,756.86]
[1752063920342,2.94770783,154.42,154.37,15.35006123]
[1752063920536,2.221,154.42,154.37,6.4769]
[1752063920741,5.16870783,154.42,154.38,198.1]
[1752063920941,6.4755,154.41,154.38,204.5765]
[1752063921441,2.94770783,154.4,154.35,8.87316123]
[1752063921740,2.94770783,154.38,154.33,8.87316123]
[1752063921933,2.94770783,154.4,154.35,6.4777]
[1752063922339,0.0414262,154.39,154.35,6.4777]
[1752063922543,6.4769,154.38,154.35,6.4777]
[1752063922738,0.0414262,154.39,154.35,204.5777]
[1752063923139,6.4766,154.38,154.35,204.5777]
[1752063923539,0.0414262,154.39,154.35,198.1]
[1752063923744,0.0414262,154.39,154.36,2.94770783]
[1752063924443,0.0414262,154.39,154.37,6.4768]
[1752063925343,0.0414262,154.39,154.38,6.4766]
[1752063925844,0.0414262,154.39,154.37,6.4767]
[1752063927147,6.5176262,154.39,154.36,6.4772]
[1752063927340,0.0414262,154.39,154.35,198.1]
[1752063927746,0.0414262,154.39,154.36,198.02]
[1752063927966,0.0414262,154.39,154.37,6.4768]
[1752063928646,6.5176262,154.39,154.36,204.4972]
[1752063928844,2.98913403,154.39,154.33,9.94770783]
[1752063929041,2.98913403,154.39,154.34,198.02]
[1752063929346,2.98913403,154.39,154.34,6.478]
[1752063929844,6.4775,154.36,154.33,204.4784]
[1752063930545,6.4775,154.36,154.34,6.4782]
[1752063930743,6.4771,154.37,154.34,6.4782]
[1752063931342,2.98913403,154.39,154.35,6.4777]
[1752063931540,0.0414262,154.39,154.33,197.96]
[1752063931952,6.5178262,154.39,154.34,197.98]
[1752063932250,6.5178262,154.39,154.34,200.92770783]
[1752063932446,6.5178262,154.39,154.36,6.4774]
[1752063933252,6.5178262,154.39,154.37,6.4769]
[1752063933253,0.0414262,154.39,154.37,6.4769]
[1752063933955,6.5176262,154.39,154.36,6.4772]
[1752063941365,6.4767,154.38,154.36,6.4772]
[1752063941564,6.4767,154.38,154.35,204.4176]
[1752063941766,6.4767,154.38,154.35,197.94]
[1752063942263,6.5177262,154.39,154.36,6.4771]
[1752063942665,0.0414262,154.39,154.35,197.98769119]
[1752063942964,6.5178262,154.39,154.35,197.98769119]
[1752063943160,0.0414262,154.39,154.35,197.98769119]
[1752063944256,0.0414262,154.39,154.35,206.86085242]
[1752063944562,0.0414262,154.39,154.37,6.4767]
[1752063945968,0.0414262,154.39,154.38,6.4766]
[1752063946666,0.0414262,154.39,154.37,6.4768]
[1752063946864,0.0414262,154.39,154.36,8.87316123]
[1752063947058,0.0414262,154.39,154.37,6.4767]
[1752063947368,0.0414262,154.39,154.36,8.87316123]
[1752063948071,0.0414262,154.39,154.37,6.4766]
[1752063948272,0.0414262,154.39,154.37,2.94770783]
[1752063948474,0.0414262,154.39,154.37,14.89155225]
[1752063948768,0.0414262,154.39,154.38,6.4766]
[1752063949673,0.0414262,154.39,154.38,8.91862021]
[1752063950567,0.0414262,154.39,154.37,6.4769]
[1752063950568,0.0414262,154.39,154.37,15.39552021]
[1752063950870,0.0414262,154.39,154.38,6.4766]
[1752063951171,0.0414262,154.39,154.38,8.91862021]
[1752063951372,0.0414262,154.39,154.38,15.39522021]
[1752063951871,0.0414262,154.39,154.38,6.4766]
[1752063956370,0.0414262,154.39,154.38,18.42044442]
[1752063957369,1.65560588,154.53,154.39,19.46]
[1752063957573,1.65560588,154.53,154.49,8.91813339]
[1752063957779,8.12610588,154.53,154.49,15.39003339]
[1752063957975,1.65560588,154.53,154.49,8.91813339]
[1752063958472,1.65560588,154.53,154.49,0.04529965]
[1752063958974,6.4715,154.5,154.49,0.04529965]
[1752063961476,2.95030136,154.5,154.41,11.89084452]
[1752063961682,2.2492,154.51,154.42,6.4746]
[1752063961878,2.95030136,154.48,154.42,6.4746]
[1752063962179,2.95030136,154.48,154.41,18.36594452]
[1752063962380,2.95030136,154.48,154.4,11.89084452]
[1752063962583,2.95030136,154.46,154.4,11.89084452]
[1752063962780,6.4739,154.45,154.4,11.89084452]
[1752063962983,6.51717319,154.45,154.4,6.4754]
[1752063963172,6.51717319,154.45,154.39,14.12624452]
[1752063963376,0.04327319,154.45,154.4,11.89084452]
[1752063963780,0.04327319,154.45,154.39,17.07654588]
[1752063964187,6.51717319,154.45,154.41,6.475]
[1752063967586,0.04327319,154.45,154.42,6.4748]
[1752063967987,0.04327319,154.45,154.41,6.4751]
[1752063968184,6.51687319,154.45,154.41,6.4751]
[1752063968983,0.04327319,154.45,154.41,6.4751]
[1752063969988,6.51697319,154.45,154.41,6.4751]
[1752063970193,0.04327319,154.45,154.39,17.07626811]
[1752063970780,0.04327319,154.45,154.42,6.4746]
[1752063972080,6.51687319,154.45,154.41,6.4751]
[1752063973494,0.04327319,154.45,154.42,6.4746]
[1752063973791,0.04327319,154.45,154.39,11.89084452]
[1752063973986,0.04327319,154.45,154.39,14.84086811]
[1752063974185,0.04327319,154.45,154.41,2.95002359]
[1752063974488,0.04327319,154.45,154.42,6.4748]
[1752063975192,0.04327319,154.45,154.43,6.4744]
[1752063975393,0.04327319,154.45,154.4,14.84086811]
[1752063976192,6.51687319,154.45,154.42,6.4747]
[1752063976793,6.51687319,154.45,154.41,9.42502359]
[1752063977293,0.04327319,154.45,154.42,6.4745]
[1752063978992,6.51697319,154.45,154.42,6.4745]
[1752063980896,0.04327319,154.45,154.42,6.4745]
[1752063981698,0.04327319,154.45,154.41,9.42512359]
[1752063981896,0.04327319,154.45,154.41,2.95002359]
[1752063982095,0.04327319,154.45,154.4,14.84086811]
[1752063982292,6.4741,154.44,154.41,6.4751]
[1752063982492,0.04327319,154.45,154.4,14.84086811]
[1752063982892,6.51707319,154.45,154.42,6.4747]
[1752063983095,0.04327319,154.45,154.4,14.84086811]
[1752063983394,6.51687319,154.45,154.42,6.4746]
[1752063984794,6.474,154.44,154.42,6.4746]
[1752063985696,6.474,154.44,154.41,6.4752]
[1752063987295,6.51727319,154.45,154.42,6.4749]
[1752063988199,6.474,154.44,154.42,6.4749]
[1752063989400,6.51717319,154.45,154.42,6.4749]
[1752063990398,6.51717319,154.45,154.34,158.33149722]
[1752063990399,2.95163717,154.43,154.39,11.89084452]
[1752063990598,2.95163717,154.43,154.37,11.89084452]
[1752063990799,2.9514804,154.43,154.37,11.89084452]
[1752063991100,6.4755,154.41,154.38,6.4763]
[1752063991801,0.0438812,154.41,154.37,11.89084452]
[1752063991991,0.0438812,154.41,154.38,14.84232492]
[1752063992304,0.0438812,154.41,154.39,6.4761]
[1752063992498,0.0438812,154.41,154.38,14.84232492]
[1752063993602,0.0438812,154.41,154.39,6.4759]
[1752063993801,0.0438812,154.41,154.38,14.84232492]
[1752063994594,0.0438812,154.41,154.4,6.4757]
[1752063995801,0.0438812,154.41,154.39,6.4759]
[1752063996205,6.5194812,154.41,154.38,18.36724452]
[1752063996406,0.0438812,154.41,154.38,11.89084452]
[1752063996605,0.0438812,154.41,154.37,11.89084452]
[1752063996907,6.476,154.4,154.37,6.4767]
[1752063998303,6.476,154.4,154.38,6.4765]
[1752063999105,6.476,154.4,154.37,6.4768]
[1752064000005,6.4761,154.39,154.37,6.4768]
[1752064000208,2.9953616,154.41,154.38,6.4765]
[1752064000608,2.9953616,154.41,154.36,11.89084452]
[1752064000806,2.9953616,154.41,154.37,6.4768]
[1752064001108,6.476,154.4,154.37,6.4768]
[1752064002003,6.4761,154.39,154.36,11.89084452]
[1752064002207,2.9953616,154.41,154.36,11.89084452]
[1752064002408,2.9953616,154.41,154.35,14.15324452]
[1752064002611,6.476,154.4,154.37,6.4767]
[1752064003205,2.9953616,154.41,154.37,6.4767]
[1752064003900,6.4761,154.4,154.37,6.4767]
[1752064004100,2.9953616,154.41,154.36,6.4772]
[1752064004306,6.4764,154.39,154.35,11.89084452]
[1752064004907,6.4764,154.39,154.36,6.4773]
[1752064005407,6.4764,154.39,154.35,11.89084452]
[1752064005609,6.4764,154.39,154.36,6.4773]
[1752064006109,6.4766,154.38,154.35,18.36844452]
[1752064006304,6.4766,154.38,154.35,6.4776]
[1752064006506,6.4766,154.38,154.35,6.5217554]
[1752064006906,9.4277804,154.39,154.35,0.0441554]
[1752064007106,2.9953616,154.41,154.35,0.0441554]
[1752064007510,6.4764,154.39,154.35,0.0441554]
[1752064008415,6.4764,154.39,154.36,6.477]
[1752064009411,6.4764,154.39,154.37,6.477]
[1752064009609,6.4764,154.39,154.35,0.0441554]
[1752064010013,6.4769,154.38,154.35,0.0441554]
[1752064010208,2.9514804,154.39,154.35,0.0441554]
[1752064010902,6.4772,154.37,154.35,0.0441554]
[1752064011402,6.52111794,154.38,154.35,6.5217554]
[1752064011606,6.52111794,154.38,154.35,0.0441554]
[1752064013111,6.52111794,154.38,154.36,6.4773]
[1752064014314,6.52111794,154.38,154.35,6.5217554]
[1752064015605,6.477,154.37,154.35,6.5217554]
[1752064015810,0.04441794,154.38,154.35,6.5217554]
[1752064016206,6.52121794,154.38,154.35,6.5217554]
[1752064016412,6.52121794,154.38,154.36,6.4774]
[1752064018617,0.04441794,154.38,154.36,6.4774]
[1752064018815,0.04441794,154.38,154.37,6.477]
[1752064019030,0.04441794,154.38,154.35,1.93359087]
[1752064019314,6.52131794,154.38,154.35,6.5217554]
[1752064019714,8.41075341,154.38,154.35,6.5217554]
[1752064020112,6.52131794,154.38,154.35,8.41119087]
[1752064020421,8.41075341,154.38,154.35,8.41119087]
[1752064020918,8.41075341,154.38,154.35,6.5217554]
[1752064024622,8.36653547,154.37,154.35,0.0441554]
[1752064025026,8.36683547,154.36,154.35,0.0441554]
[1752064025224,0.04441794,154.38,154.35,0.0441554]
[1752064025524,1.88943547,154.36,154.35,0.0441554]
[1752064026632,1.88943547,154.36,154.33,11.89084452]
[1752064026822,1.88943547,154.34,154.31,11.89084452]
[1752064027020,1.88943547,154.32,154.31,11.89084452]
[1752064027323,1.88943547,154.32,154.31,18.37014452]
[1752064027721,1.88943547,154.33,154.31,18.37014452]
[1752064027918,1.93774651,154.33,154.31,18.37014452]
[1752064028122,8.41644651,154.33,154.31,18.37014452]
[1752064028322,1.93774651,154.33,154.31,6.4793]
[1752064028520,1.93774651,154.33,154.29,1.88943547]
[1752064028926,1.93774651,154.33,154.28,11.89084452]
[1752064029122,1.93774651,154.33,154.31,6.4792]
[1752064029322,1.93774651,154.33,154.29,1.88943547]
[1752064029722,1.93774651,154.33,154.32,6.4791]
[1752064030720,3.91551123,154.39,154.35,6.4774]
[1752064030925,12.9465,154.46,154.34,1.88943547]
[1752064030926,5.02574357,154.38,154.34,1.88943547]
[1752064031128,2.1304,154.44,154.35,1.88943547]
[1752064031129,8.36573547,154.39,154.35,1.88943547]
[1752064031728,3.91435132,154.43,154.27,216.1419]
[1752064031729,2.1304,154.44,154.36,1.88943547]
[1752064031924,2.1304,154.44,154.38,8.36583547]
[1752064031925,1.88943547,154.42,154.38,8.36583547]
[1752064032126,1.88943547,154.42,154.39,1.88943547]
[1752064032326,6.4756,154.41,154.39,1.88943547]
[1752064032830,6.4756,154.41,154.39,6.4761]
[1752064033438,6.4756,154.41,154.38,6.4764]
[1752064034133,2.2706,154.43,154.38,6.4764]
[1752064034529,6.4757,154.41,154.38,6.4764]
[1752064034730,2.2706,154.43,154.37,9.42772827]
[1752064034931,4.97325728,154.42,154.37,9.42772827]
[1752064035231,6.476,154.4,154.37,9.42772827]
[1752064035436,2.95082827,154.42,154.36,6.4772]
[1752064035639,4.97489427,154.41,154.36,6.4772]
[1752064035836,6.4764,154.39,154.36,6.4772]
[1752064036034,6.4764,154.39,154.35,14.84167279]
[1752064036834,6.4764,154.39,154.36,6.4773]
[1752064038341,2.95082827,154.42,154.36,6.4773]
[1752064038547,4.97697079,154.41,154.36,6.4773]
[1752064038833,2.95082827,154.42,154.36,6.4773]
[1752064039035,6.4764,154.39,154.37,6.477]
[1752064040137,6.4764,154.39,154.36,6.4772]
[1752064042944,6.4766,154.38,154.35,21.31917279]
[1752064045043,0.04146856,154.39,154.35,11.89084452]
[1752064045235,0.04146856,154.39,154.34,18.36884452]
[1752064045433,0.04146856,154.39,154.34,11.89084452]
[1752064045634,2.95082827,154.38,154.34,11.89084452]
[1752064045854,0.04146856,154.39,154.33,11.89084452]
[1752064045855,2.95082827,154.36,154.33,11.89084452]
[1752064046038,9.42902827,154.34,154.33,11.89084452]
[1752064046341,9.42902827,154.34,154.27,28.94631732]
[1752064046342,2.95082827,154.34,154.29,11.89084452]
[1752064046541,6.4803,154.29,154.28,11.89084452]
[1752064046845,6.4803,154.29,154.27,11.89084452]
[1752064047145,6.4803,154.29,154.25,18.37254452]
[1752064047346,2.95082827,154.28,154.24,571.25084452]
[1752064047944,9.43082827,154.3,154.24,571.25084452]
[1752064048345,9.43082827,154.3,154.26,6.4814]
[1752064049244,2.2023,154.32,154.24,571.25084452]
[1752064049446,2.95082827,154.32,154.25,14.84167279]
[1752064049946,6.4793,154.32,154.29,6.4801]
[1752064050251,2.95082827,154.33,154.26,2.95082827]
[1752064050644,2.3395,154.37,154.26,2.95082827]
[1752064050841,2.95082827,154.35,154.28,2.95082827]
[1752064051049,2.95082827,154.35,154.3,6.4797]
[1752064051547,6.479,154.33,154.3,6.4797]
[1752064052849,6.52114228,154.33,154.3,6.52365657]
[1752064053049,6.4791,154.32,154.3,0.04395657]
[1752064053947,6.52094228,154.33,154.3,6.52385657]
[1752064054450,0.04214228,154.33,154.3,6.52385657]
[1752064055550,6.4791,154.32,154.3,0.04395657]
[1752064055851,2.95082827,154.31,154.3,0.04395657]
[1752064056551,9.43032827,154.31,154.3,0.04395657]
[1752064059154,6.4806,154.29,154.24,559.36]
[1752064059358,2.95082827,154.31,154.24,559.36]
[1752064059854,6.4803,154.3,154.27,6.4809]
[1752064060368,6.52578653,154.3,154.27,6.4809]
[1752064060752,0.04548653,154.3,154.24,571.25084452]
[1752064060951,0.04548653,154.3,154.27,2.95082827]
[1752064061460,0.04548653,154.3,154.27,198.55082827]
[1752064061660,0.04548653,154.3,154.29,6.4803]
[1752064063462,2.95082827,154.35,154.27,210.44167279]
[1752064063754,2.95082827,154.35,154.29,2.95082827]
[1752064064161,6.4784,154.34,154.31,6.4795]
[1752064064462,5.29032827,154.37,154.29,2.95082827]
[1752064065559,6.4782,154.34,154.31,6.4792]
[1752064070680,5.29032827,154.37,154.31,6.4792]
[1752064071967,6.4786,154.34,154.31,6.4792]
[1752064072559,6.4787,154.33,154.31,6.4792]
[1752064072970,6.4787,154.33,154.29,2.95082827]
[1752064073467,6.4787,154.33,154.3,6.4798]
[1752064074870,6.4791,154.32,154.29,6.48]
[1752064075266,6.4791,154.32,154.28,2.1676]
[1752064076061,2.95082827,154.35,154.28,2.1676]
[1752064076268,6.4789,154.33,154.3,6.4797]
[1752064077872,2.95082827,154.35,154.29,6.4801]
[1752064078273,2.95082827,154.33,154.29,6.4801]
[1752064078870,6.48,154.3,154.28,6.4805]
[1752064080374,6.4797,154.31,154.29,6.4802]
[1752064080575,2.95082827,154.33,154.25,11.89084452]
[1752064080874,6.4798,154.31,154.28,6.4805]
[1752064081573,6.48,154.3,154.28,6.4805]
[1752064081776,2.95082827,154.31,154.27,6.4811]
[1752064082369,6.4802,154.3,154.27,6.4811]
[1752064082568,2.95082827,154.31,154.27,6.4811]
[1752064082971,6.4804,154.29,154.27,6.4811]
[1752064083380,6.4804,154.29,154.24,574.20167279]
[1752064083571,6.4804,154.29,154.24,769.32167279]
[1752064084474,6.4801,154.3,154.27,6.481]
[1752064084679,2.95082827,154.31,154.27,6.481]
[1752064085280,2.95082827,154.29,154.24,571.25084452]
[1752064085672,2.95082827,154.29,154.24,577.73304452]
[1752064085970,2.95082827,154.29,154.24,565.8422]
[1752064086168,6.4818,154.26,154.24,559.36]
[1752064086377,2.95082827,154.27,154.23,6.4827]
[1752064086676,6.4823,154.25,154.21,11.89084452]
[1752064087178,6.4823,154.25,154.21,195.06]
[1752064087375,6.4823,154.25,154.22,6.483]
[1752064087573,6.4825,154.24,154.2,206.95084452]
[1752064087780,6.4825,154.24,154.21,6.4836]
[1752064087974,2.95082827,154.25,154.2,206.95084452]
[1752064088176,9.43302827,154.25,154.2,206.95084452]
[1752064088580,2.95082827,154.25,154.2,206.95084452]
[1752064088781,2.95082827,154.29,154.22,2.95082827]
[1752064089179,6.481,154.28,154.22,2.95082827]
[1752064089477,6.481,154.28,154.22,14.84167279]
[1752064089871,6.481,154.28,154.25,6.482]
[1752064091089,9.43132827,154.29,154.26,6.4815]
[1752064091485,6.4805,154.29,154.21,11.89084452]
[1752064091688,9.43132827,154.29,154.21,11.89084452]
[1752064091878,9.43132827,154.29,154.22,11.89084452]
[1752064092079,9.43132827,154.29,154.21,14.84167279]
[1752064092278,9.43132827,154.29,154.26,6.4814]
[1752064092582,9.43132827,154.29,154.21,14.84167279]
[1752064092985,2.95082827,154.29,154.21,14.84167279]
[1752064093288,2.95082827,154.29,154.23,2.95082827]
[1752064093487,2.95082827,154.29,154.23,14.84167279]
[1752064093790,7.41582827,154.31,154.23,14.84167279]
[1752064093987,5.12682827,154.31,154.23,14.84167279]
[1752064094488,5.12682827,154.31,154.29,6.4801]
[1752064095984,5.12682827,154.31,154.3,6.4799]
[1752064096185,2.95082827,154.33,154.26,2.95082827]
[1752064096684,9.42972827,154.33,154.3,6.4797]
[1752064096990,2.95082827,154.33,154.26,2.95082827]
[1752064097689,2.95082827,154.33,154.31,6.4795]
[1752064098189,2.95082827,154.33,154.26,2.95082827]
[1752064098395,9.42972827,154.33,154.26,2.95082827]
[1752064099091,9.42972827,154.33,154.3,6.4796]
[1752064100685,9.42972827,154.33,154.28,6.4807]
[1752064100985,9.42972827,154.33,154.26,2.95082827]
[1752064101292,6.4783,154.34,154.31,6.4792]
[1752064101592,9.42882827,154.35,154.28,2.95082827]
[1752064101787,2.3271,154.36,154.3,2.95082827]
[1752064102287,0.04713071,154.35,154.3,2.95082827]
[1752064102489,0.04713071,154.35,154.3,14.84167279]
[1752064103587,0.04713071,154.35,154.32,6.4787]
[1752064103791,2.95082827,154.34,154.3,11.89084452]
[1752064103990,2.95082827,154.34,154.28,11.89084452]
[1752064104191,2.95082827,154.34,154.29,6.48]
[1752064104490,2.95082827,154.34,154.26,11.89084452]
[1752064104683,2.95082827,154.32,154.27,6.4809]
[1752064104882,2.95082827,154.3,154.24,11.89084452]
[1752064105094,6.4805,154.29,154.24,11.89084452]
[1752064105290,6.4805,154.29,154.26,6.4814]
[1752064105691,2.95082827,154.3,154.26,6.4814]
[1752064106094,2.95082827,154.28,154.23,11.89084452]
[1752064106397,6.4814,154.27,154.23,11.89084452]
[1752064106596,6.4814,154.27,154.24,6.4823]
[1752064108290,6.4814,154.27,154.25,6.482]
[1752064108489,2.95082827,154.3,154.21,14.24484452]
[1752064108689,2.95082827,154.3,154.22,2.95082827]
[1752064108996,2.95082827,154.3,154.25,6.4818]
[1752064109195,6.481,154.28,154.25,6.4818]
[1752064109390,2.95082827,154.3,154.24,6.4822]
[1752064109688,2.95082827,154.28,154.24,6.4822]
[1752064109997,6.4814,154.27,154.24,6.4822]
[1752064110991,6.4818,154.26,154.23,6.4827]
[1752064111599,6.4814,154.27,154.24,6.4823]
[1752064112097,6.4814,154.27,154.25,6.4819]
[1752064112303,9.43162827,154.28,154.25,6.4819]
[1752064112493,2.95082827,154.28,154.21,11.89084452]
[1752064112693,2.95082827,154.28,154.25,6.4819]
[1752064114197,6.4813,154.27,154.25,6.4819]
[1752064114497,6.4813,154.27,154.24,6.4822]
[1752064116303,6.4816,154.26,154.23,6.4827]
[1752064116801,6.4822,154.25,154.23,6.52828781]
[1752064117101,6.4822,154.25,154.23,0.04558781]
[1752064119102,6.4822,154.25,154.23,6.52838781]
[1752064123005,6.4824,154.24,154.23,0.04558781]
[1752064123608,6.4823,154.25,154.23,0.04558781]
[1752064123813,0.0466787,154.26,154.23,0.04558781]
[1752064124197,6.482,154.25,154.23,0.04558781]
[1752064124697,2.95082827,154.25,154.23,0.04558781]
[1752064125402,9.43322827,154.25,154.23,0.04558781]
[1752064125602,2.95082827,154.25,154.23,0.04558781]
[1752064125998,6.4824,154.24,154.23,0.04558781]
[1752064130500,0.0466787,154.26,154.23,0.04558781]
[1752064130700,0.0466787,154.26,154.24,2.95082827]
[1752064131006,0.0466787,154.26,154.25,6.482]
[1752064131202,0.0466787,154.26,154.24,2.95082827]
[1752064131508,0.0466787,154.26,154.23,11.93643233]
[1752064131714,0.0466787,154.26,154.25,6.482]
[1752064132408,0.0466787,154.26,154.24,6.4823]
[1752064132605,0.0466787,154.26,154.23,0.04558781]
[1752064132806,0.0466787,154.26,154.24,2.95082827]
[1752064133106,2.1359,154.34,154.24,8.20945654]
[1752064133308,4.88494024,154.33,154.28,2.95082827]
[1752064133510,2.1359,154.34,154.28,2.95082827]
[1752064134106,6.4789,154.33,154.28,2.95082827]
[1752064134305,2.1359,154.34,154.29,0.04325407]
[1752064135110,8.6143,154.34,154.31,6.4794]
[1752064135804,8.6143,154.34,154.3,15.4039477]
[1752064136711,6.4787,154.33,154.3,15.4039477]
[1752064136913,2.1436,154.37,154.3,8.9241477]